bitfinex/quotes_ETHUSD_20250625
["timestamp","ask_amount","ask_price","bid_price","bid_amount"]
[1750830501397,19.37767267,2434.4,2433.9,4.93012809]
[1750830502324,10.0,2434.3,2433.9,4.93012809]
[1750830502518,10.0,2434.3,2434.0,4.10830628]
[1750830502732,10.0,2434.3,2434.0,5.09433226]
[1750830502933,7.78,2434.4,2434.0,5.09433226]
[1750830504242,7.78,2434.4,2434.0,0.98602598]
[1750830504641,7.78,2434.4,2434.0,5.09443092]
[1750830505147,7.78,2434.4,2434.0,0.98602598]
[1750830505442,7.78,2434.4,2433.9,4.93008515]
[1750830505443,7.78,2434.4,2434.1,4.69980901]
[1750830505624,8.72804355,2434.5,2434.3,4.89195711]
[1750830506145,8.72804355,2434.5,2434.4,4.10778836]
[1750830506649,0.94804355,2434.5,2434.4,4.10778836]
[1750830507354,4.31378673,2435.9,2434.4,4.10778836]
[1750830507355,0.7555,2436.1,2434.8,0.55]
[1750830507521,0.7555,2436.5,2435.6,7.31993647]
[1750830507724,4.10494892,2436.1,2435.7,1.747]
[1750830508037,4.51552054,2436.1,2435.7,1.747]
[1750830508232,0.41049489,2436.1,2435.7,1.747]
[1750830508639,0.41049489,2436.1,2435.7,5.8525858]
[1750830508943,4.10465825,2436.3,2435.7,5.8525858]
[1750830509835,4.10477609,2436.2,2435.7,1.747]
[1750830510242,14.10462028,2436.3,2435.7,5.85258032]
[1750830510758,10.0,2436.3,2435.8,4.10542533]
[1750830510942,2.08854922,2436.2,2435.8,4.10542533]
[1750830511253,2.08854922,2436.2,2435.7,1.747]
[1750830511254,2.08854922,2436.2,2435.9,4.10525346]
[1750830511422,11.6378223,2436.5,2435.9,4.10525346]
[1750830511952,10.0,2436.3,2435.9,4.10525346]
[1750830512453,10.0,2436.4,2435.9,4.10525346]
[1750830512653,2.16377986,2436.3,2435.9,4.10525346]
[1750830513356,2.16377986,2436.3,2436.0,4.10507097]
[1750830513961,10.0,2436.4,2435.9,4.10523301]
[1750830514853,10.0,2436.4,2435.8,0.7604]
[1750830515022,4.10458482,2436.3,2435.8,6.61178002]
[1750830515218,14.10448827,2436.4,2435.8,6.61178002]
[1750830518262,14.10448827,2436.4,2435.9,4.10522515]
[1750830518451,1.48599883,2436.3,2435.9,4.10522515]
[1750830518764,1.48599883,2436.3,2435.8,5.85136051]
[1750830520366,1.48599883,2436.3,2435.9,4.10523338]
[1750830520865,1.48599883,2436.3,2435.8,5.85136318]
[1750830522874,5.59058969,2436.3,2435.8,5.85136318]
[1750830523074,1.55905897,2436.2,2435.8,5.85136318]
[1750830527385,1.55905897,2436.2,2435.9,4.10523182]
[1750830528360,1.55905897,2436.2,2435.8,5.85134238]
[1750830528760,1.55905897,2436.2,2435.9,4.10523353]
[1750830529551,1.55905897,2436.2,2435.8,5.85130344]
[1750830530582,1.55905897,2436.2,2435.9,4.10523447]
[1750830531080,1.48599883,2436.3,2435.9,0.7825]
[1750830531782,1.48599883,2436.3,2436.0,4.10500551]
[1750830532983,1.48599883,2436.3,2435.9,4.88767044]
[1750830533672,1.48599883,2436.3,2436.0,4.10504221]
[1750830535277,10.0,2436.4,2436.0,4.10509031]
[1750830535473,10.0,2436.4,2435.9,4.88769444]
[1750830535669,10.0,2436.4,2436.1,4.10483651]
[1750830535875,10.0,2436.4,2436.0,4.10499911]
[1750830536887,10.0,2436.4,2436.1,4.10486713]
[1750830537186,10.0,2436.4,2436.2,4.10462581]
[1750830537384,12.67552512,2437.0,2436.4,0.783]
[1750830537576,19.42152512,2437.0,2436.5,4.10416627]
[1750830537883,10.0,2436.9,2436.5,4.10416351]
[1750830538083,10.0,2436.9,2436.4,0.783]
[1750830538288,10.0,2436.9,2436.5,4.10419432]
[1750830538477,19.42141878,2437.0,2436.4,0.783]
[1750830538673,19.42141878,2437.0,2436.5,4.10415786]
[1750830538674,10.0,2436.9,2436.5,4.10415786]
[1750830539974,14.10358759,2436.9,2436.4,0.783]
[1750830540290,20.845586,2436.9,2436.3,1.772]
[1750830540589,20.845586,2436.9,2436.3,5.87647263]
[1750830540893,20.84562128,2436.9,2436.2,1.16226258]
[1750830541092,4.10384635,2436.8,2436.3,1.772]
[1750830541291,20.8456146,2436.9,2436.2,0.7518]
[1750830541491,4.10384493,2436.8,2436.2,4.85647226]
[1750830541697,4.10384493,2436.8,2436.2,6.62847226]
[1750830541994,4.10392138,2436.7,2436.2,5.92980305]
[1750830542193,4.10382633,2436.8,2436.2,7.70180305]
[1750830542566,4.10382633,2436.8,2436.2,5.92980305]
[1750830543288,20.84572563,2436.9,2436.3,4.10456886]
[1750830543797,4.10382354,2436.8,2436.3,4.10456886]
[1750830544694,4.10382354,2436.8,2436.2,7.701818]
[1750830544882,4.10382354,2436.8,2436.3,4.10457696]
[1750830546108,0.55,2436.3,2435.1,0.7968]
[1750830546278,10.0,2436.0,2435.1,0.7968]
[1750830546479,14.10543849,2435.8,2435.2,4.1063]
[1750830546683,14.10543849,2435.8,2435.1,4.90335551]
[1750830546893,14.10543849,2435.8,2435.2,0.90100903]
[1750830547086,4.10571933,2435.7,2435.2,0.90100903]
[1750830547667,4.10578089,2435.6,2435.2,0.90100903]
[1750830547903,4.10424789,2436.5,2435.5,4.10583787]
[1750830548122,4.10519353,2436.0,2435.6,0.48715379]
[1750830548276,4.10519353,2436.0,2435.5,1.772]
[1750830548603,4.10519353,2436.0,2435.4,7.5407]
[1750830548604,4.10511225,2436.0,2435.4,0.7657]
[1750830548808,4.92554814,2436.1,2435.4,0.7657]
[1750830548982,4.10540732,2435.9,2435.4,0.7657]
[1750830549190,0.8206,2436.1,2435.2,1.66670903]
[1750830549499,4.10554133,2435.8,2435.2,5.77314492]
[1750830550418,14.10553047,2435.8,2435.2,5.77314492]
[1750830551011,4.10565641,2435.7,2435.2,5.77314492]
[1750830551188,4.10565641,2435.7,2435.2,1.66670903]
[1750830551373,0.7852,2435.7,2435.0,2.5358]
[1750830551697,10.0,2435.8,2435.3,4.10624443]
[1750830552302,10.0,2435.7,2435.1,7.5548]
[1750830552502,10.0,2435.7,2435.2,1.16615197]
[1750830552703,4.10577232,2435.6,2435.1,0.7548]
[1750830552904,4.10577232,2435.6,2435.1,4.86139424]
[1750830553088,14.10567185,2435.7,2435.1,4.86139424]
[1750830553290,14.10567185,2435.7,2435.2,4.1064319]
[1750830554105,1.15525238,2435.7,2435.1,0.7548]
[1750830554411,4.10622111,2435.4,2434.9,0.7732]
[1750830554708,4.10622111,2435.4,2434.9,4.88012603]
[1750830555210,4.10622111,2435.4,2434.9,0.7732]
[1750830555409,4.10622111,2435.4,2434.9,4.88013589]
[1750830555610,4.10622111,2435.4,2434.9,2.35183657]
[1750830555906,4.10627534,2435.3,2434.9,2.35183657]
[1750830556210,4.10627534,2435.3,2434.9,0.7732]
[1750830556385,0.55,2435.6,2434.9,0.7732]
[1750830556586,0.7873,2435.3,2434.7,0.7939]
[1750830556791,0.7873,2435.3,2434.5,4.90144826]
[1750830556792,10.0,2435.0,2434.5,4.90144826]
[1750830557010,14.10680134,2435.0,2434.5,0.7939]
[1750830557310,4.10698411,2434.9,2434.5,0.7939]
[1750830557715,10.0,2435.0,2434.5,0.7939]
[1750830558091,10.0,2435.0,2434.5,4.90136884]
[1750830558292,10.0,2435.0,2434.5,2.03345634]
[1750830558491,4.1062292,2435.4,2434.8,0.8301]
[1750830558696,10.0,2435.3,2434.8,4.9371244]
[1750830558895,10.0,2435.3,2434.9,4.10693898]
[1750830560521,10.0,2435.4,2434.9,4.10693898]
[1750830561022,4.10543947,2435.8,2435.1,4.10657139]
[1750830561227,10.0,2435.6,2435.1,4.10660753]
[1750830562917,14.10577951,2435.6,2435.1,4.10660753]
[1750830563104,4.10598505,2435.5,2435.0,4.89513385]
[1750830563309,14.10577951,2435.6,2435.0,0.7884]
[1750830563496,4.10604436,2435.5,2435.0,4.89514979]
[1750830563694,14.10583448,2435.6,2435.0,4.89514979]
[1750830564085,4.10594593,2435.5,2435.0,0.7884]
[1750830564616,14.1058471,2435.6,2435.0,4.89511214]
[1750830565016,14.1058471,2435.6,2435.1,4.10658183]
[1750830565388,10.0,2435.6,2435.1,5.09720809]
[1750830565596,15.88751035,2435.8,2435.1,0.99062626]
[1750830565801,14.10551035,2435.8,2435.3,0.7925]
[1750830566114,14.10551035,2435.8,2435.3,4.89869521]
[1750830566507,10.0,2435.6,2435.3,0.7925]
[1750830566708,10.0,2435.7,2435.3,0.7925]
[1750830567017,14.10560134,2435.7,2435.3,0.7925]
[1750830567807,14.10560134,2435.7,2435.0,4.10672278]
[1750830567808,4.1061947,2435.4,2435.0,0.7905]
[1750830568525,4.10576449,2435.6,2435.0,0.7905]
[1750830568526,4.10601366,2435.5,2435.0,0.7905]
[1750830568897,4.10587631,2435.6,2435.0,0.7905]
[1750830569097,4.105942,2435.5,2435.0,4.8972196]
[1750830569404,4.105942,2435.5,2435.1,0.58016327]
[1750830569698,4.10583357,2435.6,2435.1,0.58016327]
[1750830569915,14.10571351,2435.7,2435.1,0.58016327]
[1750830569916,14.10573328,2435.7,2435.2,4.1064073]
[1750830570219,14.1055229,2435.8,2435.3,4.89098292]
[1750830570424,14.1055229,2435.8,2435.3,5.84875219]
[1750830571127,10.0,2435.8,2435.4,4.10609286]
[1750830571295,10.0,2435.9,2435.4,0.7544]
[1750830571499,4.1046951,2436.3,2435.6,4.8601331]
[1750830571689,4.1046951,2436.3,2435.7,1.14124541]
[1750830571901,14.10449393,2436.4,2435.8,4.10541916]
[1750830572105,4.10460214,2436.3,2435.9,0.7768]
[1750830573510,4.10448319,2436.4,2435.9,5.48437975]
[1750830574033,14.10431363,2436.5,2436.0,4.10507528]
[1750830574840,14.10415359,2436.6,2436.0,4.10507528]
[1750830574994,10.0,2436.6,2436.1,4.10490065]
[1750830575202,14.10412653,2436.6,2436.2,0.7532]
[1750830576438,14.10412653,2436.6,2436.2,1.23902139]
[1750830576439,4.10412653,2436.6,2436.2,1.23902139]
[1750830576743,1.782,2436.7,2436.2,1.23902139]
[1750830577041,4.10436251,2436.5,2436.2,0.7532]
[1750830577959,4.10451347,2436.4,2436.2,0.7532]
[1750830578133,0.8283,2436.6,2436.0,0.7849]
[1750830578334,4.10472817,2436.3,2436.0,0.7849]
[1750830579460,4.10442783,2436.4,2435.8,0.7849]
[1750830579646,4.1047652,2436.2,2435.8,0.7849]
[1750830579953,4.1046244,2436.3,2435.8,4.89032045]
[1750830580527,4.10468491,2436.3,2435.8,0.7849]
[1750830580729,4.10468491,2436.3,2435.8,5.37936404]
[1750830581154,12.95702278,2436.6,2435.8,1.27394654]
[1750830581346,4.10477626,2436.2,2435.8,0.7849]
[1750830581546,4.1046595,2436.3,2435.8,0.7849]
[1750830581751,4.1046595,2436.3,2435.8,4.89029547]
[1750830582733,4.1046155,2436.3,2435.8,4.89029547]
[1750830584171,4.10466643,2436.3,2435.8,0.7849]
[1750830584361,4.10478765,2436.2,2435.8,0.7849]
[1750830584670,2.95702278,2436.6,2435.8,0.7849]
[1750830584671,4.10466417,2436.3,2435.8,4.89032431]
[1750830585374,4.10466417,2436.3,2435.8,4.89031574]
[1750830586486,4.10449625,2436.4,2435.8,4.89031574]
[1750830586675,4.10449625,2436.4,2435.9,4.10522558]
[1750830587847,14.1043238,2436.5,2435.8,1.68448985]
[1750830588046,14.1043238,2436.5,2435.9,4.10525883]
[1750830588775,4.10442087,2436.4,2435.9,4.10525883]
[1750830588978,14.573,2436.8,2436.1,0.8218]
[1750830588979,7.78,2436.8,2436.1,0.8218]
[1750830589275,4.1041842,2436.6,2436.1,0.8218]
[1750830590262,4.10430406,2436.5,2436.1,0.8218]
[1750830590466,4.10416476,2436.6,2436.1,0.8218]
[1750830590691,14.10398248,2436.7,2436.1,1.72500617]
[1750830590897,4.10424789,2436.5,2436.1,0.8218]
[1750830592167,0.8075,2436.6,2436.1,4.92668895]
[1750830592168,4.10416841,2436.6,2436.1,4.92668895]
[1750830592370,14.10398864,2436.7,2436.2,4.10469302]
[1750830592688,4.10408237,2436.6,2436.1,4.92667114]
[1750830592872,4.10408237,2436.6,2436.1,5.82985827]
[1750830593278,14.10398862,2436.7,2436.2,4.10471055]
[1750830594301,14.10398862,2436.7,2436.1,1.72498713]
[1750830594302,4.10408878,2436.6,2436.1,1.72498713]
[1750830594600,4.10408878,2436.6,2436.1,5.82987585]
[1750830594997,4.10441635,2436.4,2435.8,0.7688]
[1750830595166,4.10468366,2436.3,2435.8,0.7688]
[1750830595498,4.10468366,2436.3,2435.8,4.87421577]
[1750830596801,4.10468366,2436.3,2435.8,0.7688]
[1750830597494,4.10477513,2436.2,2435.8,0.7688]
[1750830597870,4.10466756,2436.3,2435.8,0.7688]
[1750830598077,4.10466756,2436.3,2435.8,4.87421073]
[1750830598702,4.10476895,2436.2,2435.8,0.7688]
[1750830598900,4.10521433,2436.0,2435.8,0.7688]
[1750830599094,4.10521433,2436.0,2435.6,0.7976]
[1750830599879,4.10500894,2436.1,2435.6,0.7976]
[1750830600373,4.10509287,2436.0,2435.6,0.7976]
[1750830602408,0.4104769,2436.2,2435.6,0.7976]
[1750830602712,4.10551031,2435.8,2435.6,0.7976]
[1750830603213,4.10533056,2435.9,2435.6,0.7976]
[1750830603992,4.10547288,2435.8,2435.6,0.7976]
[1750830604409,4.10532974,2435.9,2435.6,0.7976]
[1750830604913,14.10517074,2436.0,2435.6,0.7976]
[1750830605110,14.89399915,2436.1,2435.6,0.7976]
[1750830605414,14.10499915,2436.1,2435.6,0.7976]
[1750830605615,4.10512179,2436.0,2435.6,0.7976]
[1750830606485,4.105278,2435.9,2435.6,0.7976]
[1750830608318,4.1051762,2436.0,2435.6,0.7976]
[1750830609317,4.10530704,2435.9,2435.6,0.7976]
[1750830609516,4.10545222,2435.8,2435.6,0.7976]
[1750830610218,4.10534783,2435.9,2435.6,0.7976]
[1750830611990,4.10545976,2435.8,2435.6,0.7976]
[1750830612418,0.82106161,2435.8,2435.3,0.8325]
[1750830612606,4.10610166,2435.4,2435.3,0.8325]
[1750830612811,4.10610166,2435.4,2435.0,0.8325]
[1750830613922,4.10632502,2435.3,2435.0,0.8325]
[1750830614293,12.89263803,2435.8,2435.0,0.8325]
[1750830614294,4.1057904,2435.6,2435.0,0.8325]
[1750830614493,4.1056591,2435.7,2435.1,4.10646663]
[1750830614735,10.0,2435.7,2435.2,4.90983889]
[1750830615026,10.0,2435.7,2435.3,4.90964452]
[1750830615196,10.0,2435.7,2435.3,5.81125069]
[1750830615523,12.61314172,2436.0,2435.3,5.81125069]
[1750830615714,4.10537297,2435.9,2435.4,4.10608742]
[1750830615891,4.10537297,2435.9,2435.5,0.8034]
[1750830617627,4.10545798,2435.8,2435.5,0.8034]
[1750830618726,4.10618692,2435.4,2434.9,4.1069309]
[1750830619025,4.10618692,2435.4,2435.0,0.8328]
[1750830619729,4.10601858,2435.5,2435.0,4.93953982]
[1750830620093,4.10601858,2435.5,2435.0,0.8328]
[1750830620339,4.10613766,2435.4,2435.0,0.8328]
[1750830621629,4.10631287,2435.3,2434.7,2.5968]
[1750830621925,4.10674196,2435.1,2434.7,2.5968]
[1750830623148,4.1067904,2435.0,2434.7,2.5968]
[1750830623516,4.10668838,2435.1,2434.7,2.5968]
[1750830624051,4.10668838,2435.1,2434.4,9.858]
[1750830624052,4.10704629,2434.9,2434.4,9.858]
[1750830624341,4.10704629,2434.9,2434.5,0.7632]
[1750830625337,4.10686238,2435.0,2434.5,4.870803]
[1750830626038,4.10694553,2434.9,2434.5,0.7632]
[1750830626434,4.10685009,2435.0,2434.5,0.7632]
[1750830627640,0.7554,2435.3,2434.5,0.7632]
[1750830627641,4.10643889,2435.2,2434.5,0.7632]
[1750830627874,4.67471141,2435.2,2434.5,0.7632]
[1750830628051,4.10730812,2434.7,2434.5,0.7632]
[1750830628252,4.10719114,2434.8,2434.5,0.7632]
[1750830629052,4.10728322,2434.7,2434.5,0.7632]
[1750830629678,4.10719244,2434.8,2434.5,0.7632]
[1750830630390,4.10732744,2434.7,2434.5,0.7632]
[1750830630545,4.10718881,2434.8,2434.5,0.7632]
[1750830630982,14.10698821,2434.9,2434.5,0.7632]
[1750830634280,10.0,2434.9,2434.5,0.7632]
[1750830634665,4.10712149,2434.8,2434.5,0.7632]
[1750830634867,14.10699557,2434.9,2434.5,0.7632]
[1750830635064,10.0,2434.9,2434.5,0.7632]
[1750830636184,14.10697273,2434.9,2434.5,0.7632]
[1750830637182,4.10715039,2434.8,2434.5,0.7632]
[1750830638784,14.10700642,2434.9,2434.5,0.7632]
[1750830638962,10.0,2434.7,2434.3,3.38641607]
[1750830639365,10.0,2434.7,2434.1,0.7548]
[1750830639563,4.10790703,2434.4,2434.1,0.7548]
[1750830639882,4.10801638,2434.3,2434.1,0.7548]
[1750830640083,4.10786965,2434.4,2434.1,0.7548]
[1750830640988,4.10796413,2434.3,2434.1,0.7548]
[1750830641188,4.10778836,2434.4,2434.1,0.7548]
[1750830642065,4.10787114,2434.4,2434.1,0.7548]
[1750830642268,4.10769955,2434.5,2434.1,0.7548]
[1750830643966,5.77939951,2434.6,2434.1,0.7548]
[1750830644497,4.10764238,2434.5,2434.1,0.7548]
[1750830644794,1.67187454,2434.6,2434.1,0.7548]
[1750830644986,10.0,2434.8,2434.3,4.10786108]
[1750830645297,14.10719436,2434.8,2434.4,0.7737]
[1750830645497,10.0,2434.8,2434.4,4.88148479]
[1750830647296,10.0,2434.8,2434.5,4.10760398]
[1750830648805,10.0,2434.8,2434.4,4.88142392]
[1750830649270,10.0,2434.8,2434.5,4.10758752]
[1750830649970,10.0,2434.8,2434.4,4.88143468]
[1750830653629,10.0,2434.8,2434.5,4.10759067]
[1750830653927,10.0,2434.8,2434.4,4.88141418]
[1750830654097,10.0,2434.8,2434.5,4.10756886]
[1750830654431,7.78,2434.9,2434.5,4.10756886]
[1750830655227,7.78,2434.9,2434.6,4.10744531]
[1750830656302,7.78,2434.9,2434.6,5.00632408]
[1750830656835,7.78,2434.9,2434.6,0.89887317]
[1750830657040,7.78,2434.9,2434.5,4.10753493]
[1750830657610,4.10724329,2434.8,2434.4,0.7737]
[1750830658034,11.88701574,2434.9,2434.4,4.88145331]
[1750830659957,7.78,2434.9,2434.5,4.10761545]
[1750830660255,14.10679083,2435.0,2434.5,1.33663154]
[1750830660642,14.10679083,2435.0,2434.5,5.44417122]
[1750830661938,4.10705433,2434.9,2434.4,4.88139915]
[1750830662137,10.0,2435.0,2434.4,0.7737]
[1750830662339,4.1072745,2434.8,2434.4,0.7737]
[1750830663614,4.86393148,2434.9,2434.4,0.7737]
[1750830664054,4.86393148,2434.9,2434.3,12.59282666]
[1750830664055,4.10739412,2434.7,2434.2,12.59209125]
[1750830665369,4.10736392,2434.7,2434.2,8.484]
[1750830666047,4.10736392,2434.7,2434.1,4.87835097]
[1750830666364,4.10736502,2434.7,2434.1,4.87835097]
[1750830666538,4.10736502,2434.7,2434.2,4.10809747]
[1750830668072,4.10746333,2434.6,2434.1,4.87843702]
[1750830668278,0.8133,2434.5,2433.9,4.89615327]
[1750830668570,4.10787182,2434.4,2433.9,11.62615327]
[1750830669336,0.8133,2434.5,2433.9,0.7876]
[1750830669337,4.1080553,2434.3,2433.9,0.7876]
[1750830669536,4.92094648,2434.5,2433.9,0.7876]
[1750830669765,4.10798101,2434.3,2433.9,0.7876]
[1750830670344,4.10787572,2434.4,2433.9,0.7876]
[1750830670555,5.16020665,2434.4,2433.9,0.7876]
[1750830670755,5.16020665,2434.4,2433.9,4.89622295]
[1750830671158,5.60197017,2434.6,2433.9,4.89622295]
[1750830671159,1.49445918,2434.6,2433.9,4.89617675]
[1750830671352,10.83720229,2434.8,2434.3,4.10795152]
[1750830671558,10.0,2434.7,2434.3,4.10795152]
[1750830671934,6.73,2434.8,2434.2,0.7719]
[1750830672255,10.0,2434.9,2434.6,4.87934459]
[1750830673947,10.0,2434.9,2434.6,0.7719]
[1750830676084,17.14620098,2434.9,2434.4,4.10770807]
[1750830676258,17.14620098,2434.9,2434.4,4.93540807]
[1750830676440,4.10713243,2434.8,2434.4,0.8277]
[1750830677354,10.0,2434.7,2434.2,0.7848]
[1750830677565,5.13085436,2434.7,2434.2,9.2668]
[1750830678063,4.10736418,2434.7,2434.2,13.3748452]
[1750830678577,4.10736418,2434.7,2434.2,4.8928452]
[1750830679176,14.10736418,2434.7,2434.2,4.8928452]
[1750830682877,4.1074824,2434.6,2434.2,0.7848]
[1750830685480,10.0,2434.7,2434.2,4.89290888]
[1750830686984,14.10731407,2434.7,2434.2,4.89290888]
[1750830687284,16.60166741,2434.7,2434.2,4.89290888]
[1750830688200,10.0,2434.7,2434.3,0.7631]
[1750830688997,14.10730446,2434.7,2434.3,0.7631]
[1750830690089,4.10745576,2434.6,2434.3,0.7631]
[1750830690294,14.10736913,2434.7,2434.3,0.7631]
[1750830694706,10.0,2434.7,2434.3,0.7631]
[1750830695009,6.729,2434.8,2434.4,4.10767824]
[1750830695380,10.0,2434.9,2434.4,4.10767824]
[1750830695679,16.728,2434.9,2434.4,4.10767824]
[1750830696505,16.728,2434.9,2434.3,5.62013551]
[1750830696717,16.728,2434.9,2434.3,4.87092551]
[1750830696914,16.728,2434.9,2434.3,0.7631]
[1750830697614,4.10731581,2434.7,2434.3,0.7631]
[1750830698507,4.10717819,2434.8,2434.3,0.7631]
[1750830699811,4.10732503,2434.7,2434.3,0.7631]
[1750830700821,4.10748321,2434.6,2434.3,0.7631]
[1750830700989,4.10787019,2434.4,2434.0,0.8267]
[1750830702815,4.10753696,2434.6,2434.0,4.93515167]
[1750830703023,4.10753696,2434.6,2434.1,4.10828291]
[1750830703231,5.25451903,2434.6,2434.1,4.10828291]
[1750830704630,5.25451903,2434.6,2434.0,4.93509426]
[1750830704631,4.10762088,2434.5,2434.0,4.93509426]
[1750830705127,1.14698207,2434.6,2434.0,4.93509426]
[1750830705128,5.2545208,2434.6,2434.0,4.93509426]
[1750830706133,4.10766198,2434.5,2434.0,4.93509426]
[1750830709331,5.2545106,2434.6,2434.0,4.93509426]
[1750830709626,4.10741663,2434.7,2434.1,4.10829464]
[1750830710919,4.10741663,2434.7,2434.2,4.10811245]
[1750830711547,4.10741663,2434.7,2434.0,4.10839675]
[1750830711548,8.6099,2435.0,2434.0,0.7972]
[1750830711720,8.6099,2435.0,2433.9,6.55133101]
[1750830711721,14.10721955,2434.8,2434.3,0.7972]
[1750830711909,2.82142951,2434.7,2434.3,0.7972]
[1750830712108,10.0,2434.6,2434.3,0.7972]
[1750830713824,14.507,2435.0,2434.3,0.7972]
[1750830714028,10.0,2434.9,2434.6,0.7889]
[1750830715515,14.10697452,2434.9,2434.6,0.7889]
[1750830715708,17.37894967,2434.9,2434.6,0.7889]
[1750830719844,4.10712238,2434.8,2434.6,0.7889]
[1750830720345,17.37900094,2434.9,2434.6,0.7889]
[1750830723247,24.10300094,2434.9,2434.6,0.7889]
[1750830724336,17.37900094,2434.9,2434.6,0.7889]
[1750830724650,24.10300094,2434.9,2434.6,0.7889]
[1750830725053,19.99597515,2434.9,2434.6,0.7889]
[1750830725554,24.10293344,2434.9,2434.6,0.7889]
[1750830726241,4.10715766,2434.8,2434.6,0.7889]
[1750830726448,4.89791178,2434.8,2434.4,0.811]
[1750830726752,4.10715766,2434.8,2434.4,0.811]
[1750830727423,20.8310632,2434.9,2434.4,4.91876705]
[1750830727724,20.8310632,2434.9,2434.4,0.811]
[1750830728562,20.8310632,2434.9,2434.4,4.91869878]
[1750830729159,14.1070632,2434.9,2434.4,4.91869878]
[1750830729364,16.723,2434.9,2434.5,4.10756507]
[1750830729852,16.723,2434.9,2434.6,0.7718]
[1750830730373,4.10656467,2435.2,2434.6,0.7718]
[1750830730671,10.82956467,2435.2,2434.7,4.92402611]
[1750830730834,10.0,2435.1,2434.7,4.92402611]
[1750830731574,10.0,2435.1,2434.6,4.10743585]
[1750830731575,10.82929009,2435.3,2434.9,0.7662]
[1750830731733,10.0,2435.2,2434.9,0.7662]
[1750830732144,14.10645897,2435.2,2434.9,0.7662]
[1750830732357,4.10673317,2435.1,2434.5,4.91602562]
[1750830732558,4.10694702,2434.9,2434.5,0.8085]
[1750830732770,4.10682851,2435.0,2434.5,4.91609195]
[1750830733433,4.10695379,2434.9,2434.5,0.8085]
[1750830733834,4.10685127,2435.0,2434.5,0.8085]
[1750830734065,4.10685127,2435.0,2434.5,4.91610245]
[1750830734968,4.10685127,2435.0,2434.5,0.8085]
[1750830735463,4.10694744,2434.9,2434.5,0.8085]
[1750830736171,4.1068503,2435.0,2434.5,0.8085]
[1750830737238,4.10696638,2434.9,2434.5,0.8085]
[1750830737756,1.56911159,2435.0,2434.5,0.8085]
[1750830737757,4.10715392,2434.8,2434.5,0.8085]
[1750830738155,4.10702495,2434.9,2434.5,0.8085]
[1750830738547,4.10702495,2434.9,2434.3,0.8198]
[1750830738548,4.10739542,2434.7,2434.3,0.8198]
[1750830739372,10.82819674,2434.8,2434.3,0.8198]
[1750830740461,10.82819674,2434.8,2434.3,4.92774361]
[1750830741172,10.82819674,2434.8,2434.4,4.10778406]
[1750830741173,6.721,2434.8,2434.4,4.10778406]
[1750830741770,6.721,2434.8,2434.5,0.8178]
[1750830742271,10.0,2435.1,2434.6,0.8178]
[1750830742465,14.10671221,2435.1,2434.6,4.92514269]
[1750830743074,10.0,2435.1,2434.6,4.92514269]
[1750830743648,14.10661058,2435.1,2434.6,4.92514269]
[1750830744977,14.10661058,2435.1,2434.6,0.8178]
[1750830745280,4.10679047,2435.0,2434.6,0.8178]
[1750830745876,4.10702762,2434.9,2434.6,0.8178]
[1750830746185,4.10694484,2434.9,2434.6,0.8178]
[1750830747177,13.24490856,2435.1,2434.0,6.721]
[1750830747178,10.0,2434.5,2434.0,0.7807]
[1750830747355,4.10815513,2434.2,2433.6,4.88976124]
[1750830747550,4.10815513,2434.2,2433.6,0.7807]
[1750830747551,4.10855241,2434.0,2433.6,0.7807]
[1750830748091,10.82841325,2434.1,2433.6,0.7807]
[1750830748302,10.82837141,2434.1,2433.6,0.7807]
[1750830748486,6.72,2434.1,2433.6,4.88982806]
[1750830748683,10.82831747,2434.1,2433.6,1.85542863]
[1750830750075,10.82831747,2434.1,2433.6,5.96453058]
[1750830750280,6.72,2434.1,2433.6,5.96453058]
[1750830750602,10.82830725,2434.1,2433.6,5.96453058]
[1750830750767,6.72,2434.1,2433.6,5.96453058]
[1750830750967,10.82832367,2434.1,2433.6,5.96453058]
[1750830751294,6.72,2434.1,2433.7,1.39545306]
[1750830751596,6.72,2434.1,2433.7,0.799]
[1750830751804,6.72,2434.1,2433.7,4.90788889]
[1750830751998,10.82833074,2434.1,2433.7,0.799]
[1750830752199,4.10889774,2433.8,2433.5,0.799]
[1750830752361,4.10873042,2433.9,2433.5,0.799]
[1750830752566,14.10854158,2434.0,2433.5,0.799]
[1750830753103,4.10893081,2433.8,2433.5,0.799]
[1750830753604,4.10870787,2433.9,2433.5,0.799]
[1750830754104,4.10887764,2433.8,2433.5,0.799]
[1750830754309,4.10880744,2433.8,2433.5,0.799]
[1750830754609,4.10880744,2433.8,2433.3,4.87804449]
[1750830754985,6.72,2433.8,2433.3,0.7684]
[1750830755306,10.82888608,2433.8,2433.3,0.7684]
[1750830755705,4.10915685,2433.6,2433.1,0.7952]
[1750830755904,14.86514784,2433.7,2433.1,0.7952]
[1750830756290,14.86514784,2433.7,2433.2,4.10980075]
[1750830756498,14.86514784,2433.7,2433.1,4.90511524]
[1750830756675,14.86514784,2433.7,2433.3,4.10960542]
[1750830756676,10.0,2433.7,2433.3,4.10960542]
[1750830757083,14.10899023,2433.7,2433.2,4.10972769]
[1750830759523,14.10899023,2433.7,2433.1,0.7952]
[1750830759524,16.67953241,2433.7,2433.1,4.90510996]
[1750830760524,16.67953241,2433.7,2433.2,4.10980131]
[1750830762429,16.67953241,2433.7,2433.1,4.90510231]
[1750830762591,16.67953241,2433.7,2433.1,0.7952]
[1750830762592,12.57054218,2433.7,2433.1,0.7952]
[1750830762924,4.1093121,2433.5,2433.1,0.7952]
[1750830763526,4.1092239,2433.6,2433.1,0.7952]
[1750830763830,4.1092239,2433.6,2433.1,4.90516891]
[1750830764033,6.721,2433.5,2433.1,4.90516891]
[1750830764330,6.721,2433.5,2433.1,0.7952]
[1750830766045,6.721,2433.5,2433.1,4.90516755]
[1750830766348,6.721,2433.5,2433.1,4.90507484]
[1750830767446,4.10914149,2433.6,2433.1,4.90507484]
[1750830767654,6.721,2433.6,2433.2,4.1097967]
[1750830767948,16.721,2433.7,2433.3,0.7908]
[1750830768456,16.721,2433.7,2433.3,4.90044287]
[1750830770348,20.8299828,2433.7,2433.3,0.7908]
[1750830770644,16.721,2433.7,2433.3,0.7908]
[1750830771546,2.5771,2434.1,2433.3,0.7908]
[1750830771547,0.8301,2434.1,2433.3,0.99119562]